fUSD/lending_fUSD_20241221
["ID","MTS","AMOUNT","RATE_DAILY","PERIOD"]
[346234198,1734795581853,-500.0,0.00019178,2]
[346234199,1734795581876,-500.0,0.00019178,2]
[346234200,1734795581899,-3083.6,0.00019178,2]
[346234201,1734795581921,-500.0,0.00019178,2]
[346234202,1734795581945,-500.0,0.00019178,2]
[346234203,1734795581970,-500.0,0.00019178,2]
[346234204,1734795581993,-500.0,0.00019178,2]
[346234205,1734795582017,-557.74,0.00019178,2]
[346234206,1734795582039,-500.0,0.00019178,2]
[346234207,1734795582065,-805.69,0.00019178,2]
[346234208,1734795582089,-500.0,0.00019178,2]
[346234209,1734795582113,-500.0,0.00019178,2]
[346234210,1734795582136,-464.30509526,0.00019178,2]
[346234211,1734795582160,-500.0,0.00019178,2]
[346234212,1734795582183,-558.24,0.00019178,2]
[346234213,1734795582207,-500.0,0.00019178,2]
[346234214,1734795582230,-760.1,0.00019178,2]
[346234215,1734795582253,-500.0,0.00019178,2]
[346234216,1734795582275,-500.0,0.00019178,2]
[346234217,1734795582298,-500.0,0.00019178,2]
[346234218,1734795582323,-500.0,0.00019178,2]
[346234219,1734795582346,-500.0,0.00019178,2]
[346234220,1734795582369,-500.0,0.00019178,2]
[346234221,1734795582392,-500.0,0.00019178,2]
[346234222,1734795582418,-507.48,0.00019178,2]
[346234223,1734795582440,-988.55,0.00019178,2]
[346234224,1734795582462,-500.0,0.00019178,2]
[346234225,1734795582485,-1124.0,0.00019178,2]
[346234226,1734795582511,-500.0,0.00019178,2]
[346234227,1734795582533,-500.0,0.00019178,2]
[346234228,1734795582555,-500.0,0.00019178,2]
[346234229,1734795582581,-599.17,0.00019178,2]
[346234230,1734795582606,-563.11,0.00019178,2]
[346234231,1734795582628,-500.0,0.00019178,2]
[346234232,1734795582651,-857.4,0.00019178,2]
[346234233,1734795582674,-500.0,0.00019178,2]
[346234234,1734795582697,-500.0,0.00019178,2]
[346234235,1734795582726,-500.0,0.00019178,2]
[346234236,1734795582749,-500.0,0.00019178,2]
[346234237,1734795582772,-1246.55,0.00019178,2]
[346234238,1734795582795,-1000.38,0.00019178,2]
[346234239,1734795582819,-500.0,0.00019178,2]
[346234240,1734795582842,-500.0,0.00019178,2]
[346234241,1734795582865,-649.98,0.00019178,2]
[346234242,1734795582888,-500.0,0.00019178,2]
[346234243,1734795582911,-500.0,0.00019178,2]
[346234244,1734795582933,-500.0,0.00019178,2]
[346234245,1734795582957,-775.64,0.00019178,2]
[346234246,1734795582982,-500.0,0.00019178,2]
[346234247,1734795583006,-590.35,0.00019178,2]
[346234248,1734795583029,-742.64,0.00019178,2]
[346234249,1734795583052,-500.0,0.00019178,2]
[346234250,1734795583076,-500.0,0.00019178,2]
[346234251,1734795583100,-500.0,0.00019178,2]
[346234252,1734795583123,-500.0,0.00019178,2]
[346234253,1734795583147,-1937.97,0.00019178,2]
[346234254,1734795583172,-500.0,0.00019178,2]
[346234255,1734795583198,-1200.92,0.00019178,2]
[346234256,1734795583222,-4000.0,0.00019178,2]
[346234257,1734795583247,-16084.8105364,0.00019227,2]
[346234258,1734795583321,-26816.64093843,0.00019227,2]
[346234259,1734795583345,-151.0,0.00019227,2]
[346234260,1734795583369,-660.204767,0.00019227,2]
[346234261,1734795583393,-660.204767,0.00019227,2]
[346234262,1734795583419,-151.0,0.00019227,2]
[346234263,1734795583443,-151.0,0.00019227,2]
[346234264,1734795583467,-500.0,0.00019254,2]
[346234265,1734795583490,-592.76,0.00019254,2]
[346234266,1734795583514,-500.07,0.00019254,2]
[346234267,1734795583537,-500.0,0.00019254,2]
[346234268,1734795583566,-500.0,0.00019254,2]
[346234269,1734795583590,-500.0,0.00019254,2]
[346234270,1734795583613,-543.85,0.00019254,2]
[346234271,1734795583636,-1300.17,0.00019254,2]
[346234272,1734795583661,-169.0,0.00019256,2]
[346234273,1734795583682,-169.0,0.00019256,2]
[346234274,1734795583706,-169.0,0.00019256,2]
[346234275,1734795583729,-169.0,0.00019256,2]
[346234276,1734795583750,-169.0,0.00019256,2]
[346234277,1734795583774,-169.0,0.00019256,2]
[346234278,1734795583798,-169.0,0.00019256,2]
[346234279,1734795583826,-169.0,0.00019256,2]
[346234280,1734795583848,-169.0,0.00019256,2]
[346234281,1734795583871,-169.0,0.00019256,2]
[346234282,1734795583893,-169.0,0.00019256,2]
[346234283,1734795583915,-169.0,0.00019256,2]
[346234284,1734795583938,-169.0,0.00019256,2]
[346234285,1734795583960,-169.0,0.00019256,2]
[346234286,1734795583983,-169.0,0.00019256,2]
[346234287,1734795584005,-169.0,0.00019256,2]
[346234288,1734795584028,-169.0,0.00019256,2]
[346234289,1734795584050,-169.0,0.00019256,2]
[346234290,1734795584075,-169.0,0.00019256,2]
[346234291,1734795584098,-169.0,0.00019256,2]
[346234292,1734795584121,-249.55,0.00019256,2]
[346234293,1734795584143,-202.0,0.0001927,2]
[346234294,1734795584166,-202.0,0.0001927,2]
[346234295,1734795584189,-185.81,0.00019297,2]
[346234296,1734795584212,-497.90788601,0.00019298,2]
[346234297,1734795584234,-225.26,0.00019315,2]
[346234298,1734795584258,-16084.8105364,0.00019336,2]
[346234299,1734795584282,-26816.64093843,0.00019336,2]
[346234300,1734795584304,-151.0,0.00019336,2]
[346234301,1734795584331,-6000.0,0.00019398,5]
[346234302,1734795584355,-151.0,0.00019398,2]
[346234303,1734795584377,-541.494619,0.00019398,2]
[346234304,1734795584398,-541.494619,0.00019398,2]
[346234305,1734795584423,-174.121777,0.00019398,2]
[346234306,1734795584444,-660.204767,0.00019398,2]
[346234307,1734795584468,-660.204767,0.00019398,2]
[346234308,1734795584491,-151.0,0.00019398,2]
[346234309,1734795584514,-151.0,0.00019398,2]
[346234310,1734795584537,-150.0,0.000194,2]
[346234311,1734795584558,-2810.6686455,0.00019444,3]
[346234312,1734795584585,-16084.8105364,0.00019444,2]
[346234313,1734795584608,-26816.64093843,0.00019444,2]
[346234314,1734795584631,-150.0,0.00019451,2]
[346234315,1734795584654,-300.0,0.00019451,2]
[346234316,1734795584676,-666.0,0.00019451,2]
[346234317,1734795584698,-300.0,0.00019451,2]
[346234318,1734795584720,-1331.0,0.00019452,2]
[346234319,1734795584742,-271.902231,0.00019452,2]
[346234320,1734795584765,-329.522709,0.00019452,2]
[346234321,1734795584787,-500.0,0.00019452,2]
[346234322,1734795584810,-500.0,0.00019452,2]
[346234323,1734795584835,-500.0,0.00019452,2]
[346234324,1734795584860,-500.0,0.00019452,2]
[346234325,1734795584884,-500.0,0.00019452,2]
[346234326,1734795584907,-500.0,0.00019452,2]
[346234327,1734795584931,-512.3279452,0.00019452,2]
[346234328,1734795584953,-500.0,0.00019452,2]
[346234329,1734795584979,-500.0,0.00019452,2]
[346234330,1734795585004,-500.0,0.00019452,2]
[346234331,1734795585027,-500.0,0.00019452,2]
[346234332,1734795585050,-500.0,0.00019452,2]
[346234333,1734795585074,-151.0,0.00019452,2]
[346234334,1734795585098,-500.0,0.00019452,2]
[346234335,1734795585121,-500.0,0.00019452,2]
[346234336,1734795585145,-500.0,0.00019452,2]
[346234337,1734795585167,-500.0,0.00019452,2]
[346234338,1734795585189,-500.0,0.00019452,2]
[346234339,1734795585212,-500.0,0.00019452,2]
[346234340,1734795585235,-500.0,0.00019452,2]
[346234341,1734795585257,-608.38872231,0.00019452,2]
[346234342,1734795585279,-500.0,0.00019452,2]
[346234343,1734795585302,-500.0,0.00019452,2]
[346234344,1734795585325,-494.88921796,0.00019452,2]
[346234345,1734795585348,-500.0,0.00019452,2]
[346234346,1734795585370,-500.0,0.00019452,2]
[346234347,1734795585392,-500.0,0.00019452,2]
[346234348,1734795585420,-179.12419702,0.00019452,2]
[346234349,1734795585444,-500.0,0.00019452,2]
[346234350,1734795585467,-500.0,0.00019452,2]
[346234351,1734795585491,-500.0,0.00019452,2]
[346234352,1734795585515,-500.0,0.00019452,2]
[346234353,1734795585537,-500.0,0.00019452,2]
[346234354,1734795585562,-284.39605622,0.00019452,2]
[346234355,1734795585585,-703.98,0.00019452,2]
[346234356,1734795585608,-500.0,0.00019452,2]
[346234357,1734795585630,-500.0,0.00019452,2]
[346234358,1734795585652,-500.0,0.00019452,2]
[346234359,1734795585674,-500.0,0.00019452,2]
[346234360,1734795585697,-500.0,0.00019452,2]
[346234361,1734795585719,-500.0,0.00019452,2]
[346234362,1734795585742,-500.0,0.00019452,2]
[346234363,1734795585764,-500.0,0.00019452,2]
[346234364,1734795585788,-500.0,0.00019452,2]
[346234365,1734795585810,-294.0,0.00019452,2]
[346234366,1734795585837,-500.0,0.00019452,2]
[346234367,1734795585860,-500.0,0.00019452,2]
[346234368,1734795585884,-500.0,0.00019452,2]
[346234369,1734795585906,-500.0,0.00019452,2]
[346234370,1734795585929,-500.0,0.00019452,2]
[346234371,1734795585953,-500.0,0.00019452,2]
[346234372,1734795585976,-500.0,0.00019452,2]
[346234373,1734795585999,-500.0,0.00019452,2]
[346234374,1734795586022,-563.42557278,0.00019452,2]
[346234375,1734795586044,-500.0,0.00019452,2]
[346234376,1734795586068,-500.0,0.00019452,2]
[346234377,1734795586091,-500.0,0.00019452,2]
[346234378,1734795586116,-500.0,0.00019452,2]
[346234379,1734795586140,-656.83,0.00019452,2]
[346234380,1734795586165,-500.0,0.00019452,2]
[346234381,1734795586187,-500.0,0.00019452,2]
[346234382,1734795586211,-337.81,0.00019452,2]
[346234383,1734795586235,-459.9,0.00019452,2]
[346234384,1734795586259,-500.0,0.00019452,2]
[346234385,1734795586281,-500.0,0.00019452,2]
[346234386,1734795586304,-500.0,0.00019452,2]
[346234387,1734795586328,-260.21,0.00019452,2]
[346234388,1734795586350,-500.0,0.00019452,2]
[346234389,1734795586372,-205.66,0.00019452,2]
[346234390,1734795586397,-500.0,0.00019452,2]
[346234391,1734795586422,-500.0,0.00019452,2]
[346234392,1734795586445,-500.0,0.00019452,2]
[346234393,1734795586468,-541.494619,0.00019452,2]
[346234394,1734795586491,-541.494619,0.00019452,2]
[346234395,1734795586514,-541.494619,0.00019452,2]
[346234396,1734795586537,-541.494619,0.00019452,2]
[346234397,1734795586559,-500.0,0.00019452,2]
[346234398,1734795586585,-500.0,0.00019452,2]
[346234399,1734795586609,-500.0,0.00019452,2]
[346234400,1734795586632,-370.81989,0.00019452,2]
[346234401,1734795586655,-500.0,0.00019452,2]
[346234402,1734795586679,-500.0,0.00019452,2]
[346234403,1734795586702,-500.0,0.00019452,2]
[346234404,1734795586724,-301.17921868,0.00019452,2]
[346234405,1734795586747,-500.0,0.00019452,2]
[346234406,1734795586770,-500.0,0.00019452,2]
[346234407,1734795586793,-500.0,0.00019452,2]
[346234408,1734795586817,-500.0,0.00019452,2]
[346234409,1734795586840,-500.0,0.00019452,2]
[346234410,1734795586863,-500.0,0.00019452,2]
[346234411,1734795586886,-500.0,0.00019452,2]
[346234412,1734795586910,-500.0,0.00019452,2]
[346234413,1734795586933,-500.0,0.00019452,2]
[346234414,1734795586955,-500.0,0.00019452,2]
[346234415,1734795586981,-568.7,0.00019452,2]
[346234416,1734795587005,-500.0,0.00019452,2]
[346234417,1734795587029,-500.0,0.00019452,2]
[346234418,1734795587052,-500.0,0.00019452,2]
[346234419,1734795587078,-731.7,0.00019452,2]
[346234420,1734795587102,-500.0,0.00019452,2]
[346234421,1734795587126,-367.12985799,0.00019452,2]
[346234422,1734795587149,-500.0,0.00019452,2]
[346234423,1734795587173,-500.0,0.00019452,2]
[346234424,1734795587196,-500.0,0.00019452,2]
[346234425,1734795587220,-500.0,0.00019452,2]
[346234426,1734795587243,-500.0,0.00019452,2]
[346234427,1734795587265,-500.0,0.00019452,2]
[346234428,1734795587288,-500.0,0.00019452,2]
[346234429,1734795587310,-500.0,0.00019452,2]
[346234430,1734795587334,-643.87,0.00019452,2]
[346234431,1734795587358,-500.0,0.00019452,2]
[346234432,1734795587382,-500.0,0.00019452,2]
[346234433,1734795587404,-500.0,0.00019452,2]
[346234434,1734795587430,-500.0,0.00019452,2]
[346234435,1734795587453,-500.0,0.00019452,2]
[346234436,1734795587476,-500.0,0.00019452,2]
[346234437,1734795587500,-500.0,0.00019452,2]
[346234438,1734795587523,-500.0,0.00019452,2]
[346234439,1734795587547,-500.0,0.00019452,2]
[346234440,1734795587571,-500.0,0.00019452,2]
[346234441,1734795587595,-500.0,0.00019452,2]
[346234442,1734795587620,-500.0,0.00019452,2]
[346234443,1734795587645,-500.0,0.00019452,2]
[346234444,1734795587670,-500.0,0.00019452,2]
[346234445,1734795587693,-500.0,0.00019452,2]
[346234446,1734795587718,-500.0,0.00019452,2]
[346234447,1734795587741,-500.0,0.00019452,2]
[346234448,1734795587764,-500.0,0.00019452,2]
[346234449,1734795587788,-500.0,0.00019452,2]
[346234450,1734795587813,-500.0,0.00019452,2]
[346234451,1734795587839,-500.0,0.00019452,2]
[346234452,1734795587863,-500.0,0.00019452,2]
[346234453,1734795587889,-500.0,0.00019452,2]
[346234454,1734795587915,-500.0,0.00019452,2]
[346234455,1734795587939,-500.0,0.00019452,2]
[346234456,1734795587964,-500.0,0.00019452,2]
[346234457,1734795587990,-412.5345973,0.00019452,2]
[346234458,1734795588015,-448.36532221,0.00019452,2]
[346234459,1734795588039,-500.0,0.00019452,2]
[346234460,1734795588063,-500.0,0.00019452,2]
[346234461,1734795588091,-500.0,0.00019452,2]
[346234462,1734795588117,-500.0,0.00019452,2]
[346234463,1734795588143,-500.0,0.00019452,2]
[346234464,1734795588168,-500.0,0.00019452,2]
[346234465,1734795588194,-500.0,0.00019452,2]
[346234466,1734795588221,-500.0,0.00019452,2]
[346234467,1734795588248,-592.68212234,0.00019452,2]
[346234468,1734795588275,-500.0,0.00019452,2]
[346234469,1734795588301,-500.0,0.00019452,2]
[346234470,1734795588329,-500.0,0.00019452,2]
[346234471,1734795588355,-500.0,0.00019452,2]
[346234472,1734795588381,-500.0,0.00019452,2]
[346234473,1734795588407,-509.93775967,0.00019452,2]
[346234474,1734795588438,-500.0,0.00019452,2]
[346234475,1734795588463,-151.0,0.00019452,2]
[346234476,1734795588489,-151.0,0.00019452,2]
[346234477,1734795588516,-500.0,0.00019452,2]
[346234478,1734795588541,-500.0,0.00019452,2]
[346234479,1734795588568,-500.0,0.00019452,2]
[346234480,1734795588595,-550.96,0.00019452,2]
[346234481,1734795588620,-561.53,0.00019452,2]
[346234482,1734795588645,-500.0,0.00019452,2]
[346234483,1734795588669,-500.0,0.00019452,2]
[346234484,1734795588694,-500.0,0.00019452,2]
[346234485,1734795588720,-500.0,0.00019452,2]
[346234486,1734795588746,-500.0,0.00019452,2]
[346234487,1734795588989,-500.0,0.00019452,2]
[346234488,1734795589014,-500.0,0.00019452,2]
[346234489,1734795589039,-500.0,0.00019452,2]
[346234490,1734795589065,-500.0,0.00019452,2]
[346234491,1734795589092,-500.0,0.00019452,2]
[346234492,1734795589118,-500.0,0.00019452,2]
[346234493,1734795589144,-500.0,0.00019452,2]
[346234494,1734795589169,-464.8174709,0.00019452,2]
[346234495,1734795589194,-500.0,0.00019452,2]
[346234496,1734795589219,-621.4999537,0.00019452,2]
[346234497,1734795589243,-500.0,0.00019452,2]
[346234498,1734795589267,-500.0,0.00019452,2]
[346234499,1734795589291,-500.0,0.00019452,2]
[346234500,1734795589316,-500.0,0.00019452,2]
[346234501,1734795589341,-708.07,0.00019452,2]
[346234502,1734795589364,-660.204767,0.00019452,2]
[346234503,1734795589387,-660.204767,0.00019452,2]
[346234504,1734795589411,-660.204767,0.00019452,2]
[346234505,1734795589438,-660.204767,0.00019452,2]
[346234506,1734795589464,-1009.95,0.00019452,2]
[346234507,1734795589488,-500.0,0.00019452,2]
[346234508,1734795589515,-1780.27,0.00019452,2]
[346234509,1734795589539,-500.0,0.00019452,2]
[346234510,1734795589563,-500.0,0.00019452,2]
[346234511,1734795589588,-500.0,0.00019452,2]
[346234512,1734795589612,-748.88,0.00019452,2]
[346234513,1734795589636,-500.0,0.00019452,2]
[346234514,1734795589660,-500.0,0.00019452,2]
[346234515,1734795589684,-856.5,0.00019452,2]
[346234516,1734795589707,-559.84,0.00019452,2]
[346234517,1734795589731,-500.0,0.00019452,2]
[346234518,1734795589754,-795.04,0.00019452,2]
[346234519,1734795589778,-500.0,0.00019452,2]
[346234520,1734795589801,-776.12,0.00019452,2]
[346234521,1734795589825,-500.0,0.00019452,2]
[346234522,1734795589848,-602.09340289,0.00019452,2]
[346234523,1734795589873,-530.4,0.00019452,2]
[346234524,1734795589898,-653.7,0.00019452,2]
[346234525,1734795589921,-500.0,0.00019452,2]
[346234526,1734795589946,-544.98,0.00019452,2]
[346234527,1734795589970,-500.0,0.00019452,2]
[346234528,1734795589995,-500.0,0.00019452,2]
[346234529,1734795590020,-769.59,0.00019452,2]
[346234530,1734795590044,-1443.92,0.00019452,2]
[346234531,1734795590069,-500.0,0.00019452,2]
[346234532,1734795590094,-1930.36,0.00019452,2]
[346234533,1734795590119,-500.0,0.00019452,2]
[346234534,1734795590143,-500.35,0.00019452,2]
[346234535,1734795590166,-922.36,0.00019452,2]
[346234536,1734795590190,-1005.39,0.00019452,2]
[346234537,1734795590214,-587.85,0.00019452,2]
[346234538,1734795590238,-151.0,0.00019452,2]
[346234539,1734795590261,-151.0,0.00019452,2]
[346234540,1734795590285,-570.13,0.00019452,2]
[346234541,1734795590309,-500.0,0.00019452,2]
[346234542,1734795590333,-579.6,0.00019452,2]
[346234543,1734795590357,-500.0,0.00019452,2]
[346234544,1734795590382,-151.0,0.00019452,2]
[346234545,1734795590406,-500.0,0.00019452,2]
[346234546,1734795590433,-151.0,0.00019452,2]
[346234547,1734795590458,-1077.83,0.00019452,2]
[346234548,1734795590481,-547.29,0.00019452,2]
[346234549,1734795590507,-2128.63,0.00019452,2]
[346234550,1734795590530,-942.84,0.00019452,2]
[346234551,1734795590554,-700.0,0.00019452,2]
[346234552,1734795590580,-500.0,0.00019452,2]
[346234553,1734795590605,-514.16,0.00019452,2]
[346234554,1734795590628,-500.0,0.00019452,2]
[346234555,1734795590652,-4151.52,0.00019452,2]
[346234556,1734795590676,-765.17,0.00019452,2]
[346234557,1734795590699,-500.0,0.00019452,2]
[346234558,1734795590724,-1040.89,0.00019452,2]
[346234559,1734795590748,-981.78,0.00019452,2]
[346234560,1734795590772,-500.0,0.00019452,2]
[346234561,1734795590796,-500.0,0.00019452,2]
[346234562,1734795590823,-2160.95,0.00019452,2]
[346234563,1734795590849,-2134.04,0.00019452,2]
[346234564,1734795590872,-539.8,0.00019452,2]
[346234565,1734795590896,-500.0,0.00019452,2]
[346234566,1734795590920,-500.0,0.00019452,2]
[346234567,1734795590945,-599.48,0.00019452,2]
[346234568,1734795590970,-2849.36,0.00019452,2]
[346234569,1734795590994,-1532.96,0.00019452,2]
[346234570,1734795591018,-552.35,0.00019452,2]
[346234571,1734795591041,-661.03,0.00019452,2]
[346234572,1734795591065,-771.43,0.00019452,2]
[346234573,1734795591090,-500.0,0.00019452,2]
[346234574,1734795591115,-500.0,0.00019452,2]
[346234575,1734795591138,-868.57,0.00019452,2]
[346234576,1734795591162,-500.0,0.00019452,2]
[346234577,1734795591188,-500.0,0.00019452,2]
[346234578,1734795591212,-500.0,0.00019452,2]
[346234579,1734795591237,-500.0,0.00019452,2]
[346234580,1734795591260,-500.0,0.00019452,2]
[346234581,1734795591332,-871.38,0.00019452,2]
[346234582,1734795591357,-1128.63,0.00019452,2]
[346234583,1734795591381,-500.0,0.00019452,2]
[346234584,1734795591407,-354.92236375,0.00019452,2]
[346234585,1734795591435,-500.0,0.00019452,2]
[346234586,1734795591459,-500.0,0.00019452,2]
[346234587,1734795591483,-1344.88,0.00019452,2]
[346234588,1734795591508,-500.0,0.00019452,2]
[346234589,1734795591531,-500.0,0.00019452,2]
[346234590,1734795591556,-500.0,0.00019452,2]
[346234591,1734795591583,-2782.35,0.00019452,2]
[346234592,1734795591607,-500.0,0.00019452,2]
[346234593,1734795591630,-1580.0,0.00019452,2]
[346234594,1734795591654,-4184.23,0.00019452,2]
[346234595,1734795591679,-500.0,0.00019452,2]
[346234596,1734795591705,-500.0,0.00019452,2]
[346234597,1734795591729,-500.0,0.00019452,2]
[346234598,1734795591753,-500.0,0.00019452,2]
[346234599,1734795591777,-500.0,0.00019452,2]
[346234600,1734795591802,-797.66,0.00019452,2]
[346234601,1734795591825,-500.0,0.00019452,2]
[346234602,1734795591848,-627.92,0.00019452,2]
[346234603,1734795591872,-500.0,0.00019452,2]
[346234604,1734795591897,-500.0,0.00019452,2]
[346234605,1734795591921,-500.0,0.00019452,2]
[346234606,1734795591946,-500.0,0.00019452,2]
[346234607,1734795591971,-500.0,0.00019452,2]
[346234608,1734795591996,-500.0,0.00019452,2]
[346234609,1734795592022,-500.0,0.00019452,2]
[346234610,1734795592047,-3083.6,0.00019452,2]
[346234611,1734795592072,-500.0,0.00019452,2]
[346234612,1734795592096,-500.0,0.00019452,2]
[346234613,1734795592118,-500.0,0.00019452,2]
[346234614,1734795592142,-500.0,0.00019452,2]
[346234615,1734795592166,-557.74,0.00019452,2]
[346234616,1734795592193,-312.29,0.00019452,2]
[346234617,1734795592217,-805.69,0.00019452,2]
[346234618,1734795592241,-500.0,0.00019452,2]
[346234619,1734795592265,-500.0,0.00019452,2]
[346234620,1734795592289,-500.0,0.00019452,2]
[346234621,1734795592312,-558.24,0.00019452,2]
[346234622,1734795592338,-500.0,0.00019452,2]
[346234623,1734795592361,-760.1,0.00019452,2]
[346234624,1734795592384,-500.0,0.00019452,2]
[346234625,1734795592407,-500.0,0.00019452,2]
[346234626,1734795592432,-500.0,0.00019452,2]
[346234627,1734795592456,-500.0,0.00019452,2]
[346234628,1734795592479,-500.0,0.00019452,2]
[346234629,1734795592504,-179.58414036,0.00019452,2]
[346234630,1734795592527,-507.48,0.00019452,2]
[346234631,1734795592551,-988.55,0.00019452,2]
[346234632,1734795592575,-250.24775741,0.00019452,2]
[346234633,1734795592600,-1124.0,0.00019452,2]
[346234634,1734795592622,-500.0,0.00019452,2]
[346234635,1734795592646,-500.0,0.00019452,2]
[346234636,1734795592668,-500.0,0.00019452,2]
[346234637,1734795592691,-563.11,0.00019452,2]
[346234638,1734795592715,-500.0,0.00019452,2]
[346234639,1734795592753,-857.4,0.00019452,2]
[346234640,1734795592780,-500.0,0.00019452,2]
[346234641,1734795592805,-491.08,0.00019452,2]
[346234642,1734795592830,-500.0,0.00019452,2]
[346234643,1734795592853,-1246.55,0.00019452,2]
[346234644,1734795592878,-1000.38,0.00019452,2]
[346234645,1734795592901,-577.23,0.00019452,2]
[346234646,1734795592928,-500.0,0.00019452,2]
[346234647,1734795592953,-649.98,0.00019452,2]
[346234648,1734795592977,-500.0,0.00019452,2]
[346234649,1734795593002,-500.0,0.00019452,2]
[346234650,1734795593026,-500.0,0.00019452,2]
[346234651,1734795593051,-775.64,0.00019452,2]
[346234652,1734795593076,-500.0,0.00019452,2]
[346234653,1734795593101,-590.35,0.00019452,2]
[346234654,1734795593126,-742.64,0.00019452,2]
[346234655,1734795593150,-500.0,0.00019452,2]
[346234656,1734795593174,-500.0,0.00019452,2]
[346234657,1734795593198,-500.0,0.00019452,2]
[346234658,1734795593221,-500.0,0.00019452,2]
[346234659,1734795593246,-1937.97,0.00019452,2]
[346234660,1734795593271,-500.0,0.00019452,2]
[346234661,1734795593295,-1200.92,0.00019452,2]
[346234662,1734795593321,-499.38,0.00019452,2]
[346234663,1734795593346,-500.0,0.00019452,2]
[346234664,1734795593376,-30869.60291509,0.00019497,4]
[346234665,1734795593401,-151.0,0.00019497,2]
[346234666,1734795593429,-660.204767,0.00019497,2]
[346234667,1734795593453,-660.204767,0.00019497,2]
[346234668,1734795593477,-151.0,0.00019497,2]
[346234669,1734795593504,-151.0,0.00019497,2]
[346234670,1734795593527,-158.26896,0.00019528,2]
[346234671,1734795593554,-500.0,0.00019528,2]
[346234672,1734795593580,-500.07,0.00019528,2]
[346234673,1734795593605,-500.0,0.00019528,2]
[346234674,1734795593629,-500.0,0.00019528,2]
[346234675,1734795593654,-500.0,0.00019528,2]
[346234676,1734795593679,-1300.17,0.00019528,2]
[346234677,1734795593704,-541.494619,0.00019528,2]
[346234678,1734795593728,-541.494619,0.00019528,2]
[346234679,1734795593754,-150.0,0.00019548,2]
[346234680,1734795593780,-150.0,0.00019551,2]
[346234681,1734795593807,-16084.8105364,0.00019553,2]
[346234682,1734795593837,-26816.64093843,0.00019553,2]
[346234683,1734795593865,-150.0,0.00019555,2]
[346234684,1734795593892,-150.0,0.00019558,2]
[346234685,1734795593919,-150.0,0.0001956,2]
[346234686,1734795593946,-150.0,0.00019563,2]
[346234687,1734795593974,-150.0,0.00019573,2]
[346234688,1734795594005,-150.0,0.00019573,2]
[346234689,1734795594031,-150.0,0.00019575,2]
[346234690,1734795594058,-150.0,0.00019578,2]
[346234691,1734795594084,-150.0,0.00019588,2]
[346234692,1734795594112,-150.0,0.00019591,2]
[346234693,1734795594138,-150.0,0.00019591,2]
[346234694,1734795594165,-150.0,0.00019595,2]
[346234695,1734795594191,-150.0,0.00019596,2]
[346234696,1734795594220,-150.0,0.00019597,2]
[346234697,1734795594249,-150.0,0.00019601,2]